bitfinex/quotes_SOLUSD_20250625
["timestamp","ask_amount","ask_price","bid_price","bid_amount"]
[1750882088512,6.50259761,144.57,144.53,26.0]
[1750882088707,8.2591826,144.57,144.53,6.5985826]
[1750882089110,1.6606,144.57,144.53,6.5985826]
[1750882089823,6.50263571,144.57,144.51,26.0]
[1750882090030,6.50263571,144.57,144.53,6.5985826]
[1750882091200,6.5985826,144.55,144.51,6.5985826]
[1750882091430,6.5985826,144.54,144.5,6.5985826]
[1750882091734,13.1253826,144.53,144.48,6.5985826]
[1750882091944,4.84362026,144.52,144.48,6.5985826]
[1750882092236,4.84362026,144.52,144.49,6.5985826]
[1750882095014,1.5026,144.51,144.48,6.5985826]
[1750882095214,8.1011826,144.51,144.46,6.5985826]
[1750882095523,8.1011826,144.51,144.45,6.92260022]
[1750882095713,6.5985826,144.5,144.46,6.5985826]
[1750882095918,6.5985826,144.5,144.45,6.92260022]
[1750882095919,11.44319016,144.5,144.45,13.52118282]
[1750882096322,11.44319016,144.5,144.45,6.5985826]
[1750882096525,6.5985826,144.49,144.45,6.5985826]
[1750882096727,6.5985826,144.48,144.44,6.5985826]
[1750882097750,11.44355368,144.48,144.44,6.5985826]
[1750882097956,11.44355368,144.48,144.43,35.64345691]
[1750882098133,6.5985826,144.47,144.43,32.5985826]
[1750882098330,6.5985826,144.47,144.42,35.25947426]
[1750882098534,6.5985826,144.46,144.42,28.33538425]
[1750882098734,8.2132826,144.45,144.42,28.33538425]
[1750882100264,13.05933755,144.45,144.42,28.33538425]
[1750882101877,6.46075495,144.45,144.42,28.33538425]
[1750882102837,6.46075495,144.45,144.41,6.5985826]
[1750882103037,13.05933755,144.45,144.41,6.5985826]
[1750882105063,41.51933755,144.45,144.41,6.5985826]
[1750882105265,41.51933755,144.45,144.4,18.01936482]
[1750882105568,41.51933755,144.45,144.38,31.75551985]
[1750882105569,6.5985826,144.43,144.38,19.70445359]
[1750882105767,6.5985826,144.43,144.38,12.7785826]
[1750882106638,6.5985826,144.43,144.39,6.5985826]
[1750882108394,4.84663851,144.43,144.39,6.5985826]
[1750882108596,4.84663851,144.43,144.39,13.52421872]
[1750882110493,4.84663851,144.43,144.39,6.92563612]
[1750882110798,4.84663851,144.43,144.39,13.52421872]
[1750882111496,4.84663851,144.43,144.39,6.5985826]
[1750882115202,11.44522111,144.43,144.39,6.5985826]
[1750882116401,4.84663851,144.43,144.39,13.52426755]
[1750882116704,4.84663851,144.43,144.39,6.5985826]
[1750882116890,148.6,144.44,144.4,6.5985826]
[1750882117080,148.6,144.44,144.37,43.31649564]
[1750882117081,148.6,144.44,144.41,6.5985826]
[1750882118008,153.44632102,144.44,144.41,6.5985826]
[1750882118182,153.44632102,144.44,144.4,6.5985826]
[1750882119805,153.44632102,144.44,144.4,13.52371268]
[1750882120000,148.6,144.44,144.41,6.5985826]
[1750882120298,177.06,144.44,144.41,6.5985826]
[1750882121821,6.5985826,144.43,144.38,26.0]
[1750882121986,6.5985826,144.42,144.38,26.0]
[1750882122308,28.46,144.41,144.38,32.5985826]
[1750882123085,28.46,144.41,144.38,39.52450443]
[1750882123290,28.46,144.41,144.39,6.5985826]
[1750882125388,28.46,144.41,144.39,13.52421061]
[1750882126419,28.46,144.41,144.39,6.5985826]
[1750882126990,28.46,144.41,144.38,39.5245471]
[1750882127201,28.46,144.41,144.38,32.5985826]
[1750882127401,39.90591598,144.41,144.36,13.545516]
[1750882127718,6.5985826,144.39,144.36,0.02]
[1750882127927,28.46,144.38,144.36,0.02]
[1750882129020,28.46,144.38,144.36,6.94712129]
[1750882129204,28.46,144.38,144.36,13.54570389]
[1750882132122,28.46,144.38,144.37,6.5985826]
[1750882132795,28.46,144.38,144.37,13.52522941]
[1750882133418,28.46,144.41,144.37,13.52522941]
[1750882133619,28.46,144.41,144.38,6.5985826]
[1750882134231,28.46,144.41,144.4,6.5985826]
[1750882134845,28.46,144.41,144.4,13.52379035]
[1750882135137,34.8061,144.42,144.4,6.5985826]
[1750882135337,34.8061,144.42,144.39,13.52407538]
[1750882135841,34.8061,144.42,144.39,6.92549278]
[1750882136146,34.8061,144.42,144.39,13.52407538]
[1750882136528,34.8061,144.42,144.37,24.24326383]
[1750882136718,34.8061,144.42,144.39,6.5985826]
[1750882136916,34.8061,144.42,144.38,6.5985826]
[1750882136917,39.65308135,144.42,144.38,6.5985826]
[1750882137824,34.8061,144.42,144.38,6.5985826]
[1750882138138,34.8061,144.42,144.4,6.5985826]
[1750882138339,34.8061,144.42,144.37,24.24326383]
[1750882138543,34.8061,144.42,144.39,6.5985826]
[1750882139742,34.8061,144.42,144.38,13.52430757]
[1750882139944,34.8061,144.42,144.38,6.92572497]
[1750882140128,46.25174038,144.42,144.37,13.52478009]
[1750882140441,6.5985826,144.41,144.37,6.5985826]
[1750882140620,11.44603407,144.41,144.37,6.5985826]
[1750882141039,46.25171438,144.42,144.37,13.52505846]
[1750882141325,34.8061,144.42,144.39,6.5985826]
[1750882141946,34.8061,144.42,144.37,24.24309288]
[1750882142148,34.8061,144.42,144.4,6.5985826]
[1750882143230,34.8061,144.42,144.4,13.5236706]
[1750882144139,34.8061,144.42,144.4,6.925088]
[1750882144368,34.8061,144.42,144.4,13.5236706]
[1750882145841,28.46,144.42,144.4,13.5236706]
[1750882146857,35.0585826,144.42,144.38,13.52474965]
[1750882147027,40.23460113,144.42,144.38,6.5985826]
[1750882147229,40.23460113,144.42,144.37,13.52522941]
[1750882147435,35.0585826,144.42,144.37,13.52522941]
[1750882147832,6.5985826,144.41,144.37,6.92664681]
[1750882148039,28.46,144.4,144.37,6.92664681]
[1750882148447,28.46,144.4,144.37,13.52522941]
[1750882149356,28.46,144.4,144.37,6.92664681]
[1750882149544,28.46,144.4,144.37,13.52522941]
[1750882151050,28.46,144.4,144.36,6.94691532]
[1750882151261,28.46,144.4,144.36,13.54549792]
[1750882154466,28.46,144.4,144.36,0.02]
[1750882154651,28.46,144.4,144.36,6.6185826]
[1750882156168,28.46,144.4,144.37,6.5985826]
[1750882156748,28.46,144.4,144.36,13.5456342]
[1750882157371,33.63732594,144.4,144.36,13.5456342]
[1750882157670,6.5985826,144.39,144.36,0.02]
[1750882157854,6.5985826,144.37,144.36,0.02]
[1750882158169,35.0585826,144.37,144.36,0.02]
[1750882163271,28.46,144.37,144.36,0.02]
[1750882164267,45.21850114,144.37,144.36,0.02]
[1750882164451,51.41530114,144.37,144.36,0.02]
[1750882166349,46.56664838,144.37,144.36,0.02]
[1750882166569,46.42448681,144.37,144.36,0.02]
[1750882166764,41.2553826,144.37,144.36,0.02]
[1750882167076,34.6568,144.37,144.36,0.02]
[1750882167276,28.46,144.37,144.36,0.02]
[1750882167476,28.46,144.37,144.36,6.6185826]
[1750882168481,28.46,144.37,144.36,0.02]
[1750882169776,28.46,144.37,144.36,6.6185826]
[1750882170353,28.46,144.37,144.36,0.02]
[1750882170571,28.46,144.37,144.36,6.6185826]
[1750882172663,28.46,144.37,144.36,13.54570922]
[1750882176561,28.46,144.37,144.36,0.02]
[1750882176759,39.90723536,144.37,144.36,0.02]
[1750882176959,35.0585826,144.37,144.36,0.02]
[1750882177379,28.46,144.37,144.36,0.02]
[1750882179686,33.30865276,144.37,144.36,0.02]
[1750882179979,39.90723536,144.37,144.36,0.02]
[1750882180365,45.07367546,144.37,144.36,0.02]
[1750882180566,200.31973703,144.37,144.36,0.02]
[1750882184289,200.60406017,144.37,144.36,0.02]
[1750882186664,70.65370903,144.37,144.36,0.02]
[1750882187688,53.01599303,144.36,144.35,0.02]
[1750882187990,70.77716467,144.36,144.35,0.02]
[1750882188604,44.77716467,144.36,144.35,0.02]
[1750882188791,26.28432314,144.34,144.33,0.02]
[1750882188960,67.63240574,144.34,144.33,0.02]
[1750882189162,72.79884584,144.34,144.33,0.02]
[1750882189895,77.64850636,144.34,144.33,0.02]
[1750882191091,96.44031679,144.34,144.33,0.02]
[1750882191302,102.03578779,144.34,144.33,0.02]
[1750882192467,96.44031679,144.34,144.33,0.02]
[1750882192896,77.79066793,144.34,144.33,0.02]
[1750882193981,77.50634479,144.34,144.33,0.02]
[1750882194180,71.07468322,144.34,144.33,0.02]
[1750882194389,71.21684479,144.34,144.33,0.02]
[1750882194593,66.05040469,144.34,144.33,0.02]
[1750882199000,28.46,144.34,144.33,0.02]
[1750882200206,39.90824312,144.34,144.33,0.02]
[1750882200404,33.30966052,144.34,144.33,0.02]
[1750882201307,4.84966052,144.34,144.33,0.02]
[1750882201514,28.46,144.34,144.33,0.02]
[1750882203986,6.18,144.36,144.33,0.02]
[1750882204203,28.46,144.35,144.33,0.02]
[1750882207195,17.62759757,144.36,144.33,0.02]
[1750882207395,28.46,144.35,144.33,0.02]
[1750882210011,17.62759757,144.36,144.33,0.02]
[1750882210313,28.46,144.35,144.33,0.02]
[1750882211708,6.18,144.36,144.33,0.02]
[1750882212015,28.46,144.34,144.33,0.02]
[1750882215018,28.46,144.34,144.33,6.6185826]
[1750882217626,28.46,144.34,144.33,13.54714907]
[1750882220508,28.46,144.34,144.33,6.6185826]
[1750882221809,28.46,144.34,144.33,13.54714907]
[1750882222128,6.18,144.36,144.33,13.54714907]
[1750882222305,28.44,144.34,144.33,13.54714907]
[1750882224615,28.44,144.34,144.33,6.6185826]
[1750882224937,4.84882249,144.37,144.33,6.6185826]
[1750882225116,28.44,144.36,144.33,6.6185826]
[1750882225304,28.44,144.36,144.33,0.02]
[1750882225503,28.44,144.36,144.33,6.6185826]
[1750882227344,33.28903308,144.36,144.33,6.6185826]
[1750882228413,28.44,144.36,144.33,0.02]
[1750882229636,28.44,144.36,144.33,6.6185826]
[1750882231343,28.44,144.36,144.34,6.5985826]
[1750882232239,28.44,144.36,144.35,6.5985826]
[1750882233210,153.44812517,144.39,144.35,6.5985826]
[1750882233413,148.6,144.39,144.38,6.5985826]
[1750882233626,6.2,144.41,144.38,6.5985826]
[1750882233833,28.44,144.39,144.38,6.5985826]
[1750882234052,6.2,144.41,144.38,6.5985826]
[1750882234341,28.44,144.4,144.38,6.5985826]
[1750882234513,6.2,144.41,144.38,6.5985826]
[1750882234713,28.44,144.4,144.38,6.5985826]
[1750882235127,28.44,144.39,144.38,6.5985826]
[1750882236234,4.8477003,144.4,144.34,6.92808646]
[1750882236423,28.44,144.39,144.36,6.5985826]
[1750882236746,28.44,144.39,144.37,6.5985826]
[1750882238953,28.44,144.39,144.36,6.5985826]
[1750882239324,28.44,144.39,144.37,6.5985826]
[1750882241152,28.44,144.39,144.36,6.92699014]
[1750882241153,28.44,144.39,144.36,6.5985826]
[1750882241340,39.88658766,144.39,144.34,6.5985826]
[1750882241522,33.28800506,144.39,144.35,6.5985826]
[1750882241720,45.05108303,144.39,144.35,6.5985826]
[1750882241973,39.88658766,144.39,144.35,6.5985826]
[1750882242822,28.44,144.39,144.35,13.52599416]
[1750882243024,33.60558586,144.39,144.35,13.52599416]
[1750882243227,38.45365351,144.39,144.35,13.52599416]
[1750882247934,39.88665025,144.39,144.34,13.52644594]
[1750882248141,39.88665025,144.39,144.34,6.5985826]
[1750882249435,39.88665025,144.39,144.34,13.52661735]
[1750882249638,5.1695735,144.38,144.34,13.52661735]
[1750882249942,28.42,144.37,144.34,13.52661735]
[1750882250553,28.42,144.37,144.35,6.5985826]
[1750882251354,28.42,144.37,144.36,6.5985826]
[1750882252138,28.42,144.37,144.36,13.52570922]
[1750882252562,28.42,144.37,144.36,6.5985826]
[1750882252762,28.42,144.37,144.35,6.92738352]
[1750882252763,28.42,144.37,144.35,13.52596612]
[1750882253433,28.42,144.37,144.36,6.5985826]
[1750882253626,28.42,144.37,144.36,13.52570922]
[1750882258156,156.5271,144.4,144.36,13.52570922]
[1750882258157,5.17633223,144.38,144.36,13.52570922]
[1750882258360,28.42,144.38,144.37,4.21712331]
[1750882258658,33.59648717,144.38,144.36,11.14424993]
[1750882258859,28.42,144.38,144.37,4.21712331]
[1750882259059,33.59648902,144.38,144.37,4.21712331]
[1750882259267,28.42,144.38,144.37,4.21712331]
[1750882259764,33.59670198,144.38,144.37,4.21712331]
[1750882259934,33.59670198,144.38,144.36,6.92712662]
[1750882259935,28.42,144.38,144.36,11.14424993]
[1750882261461,28.42,144.38,144.37,4.21712331]
[1750882261761,28.42,144.38,144.37,11.14377012]
[1750882262232,148.6,144.4,144.37,11.14377012]
[1750882262437,5.17711894,144.39,144.37,11.14377012]
[1750882262745,28.42,144.39,144.37,11.14377012]
[1750882263166,148.6,144.4,144.37,11.14377012]
[1750882263460,28.42,144.39,144.37,11.14377012]
[1750882263863,28.42,144.38,144.37,11.14377012]
[1750882267159,0.04,144.41,144.37,11.14377012]
[1750882267363,33.59724252,144.4,144.37,11.14377012]
[1750882267566,28.42,144.4,144.37,11.14377012]
[1750882268768,0.04,144.41,144.37,11.14377012]
[1750882269060,33.59776048,144.4,144.37,11.14377012]
[1750882269262,28.42,144.4,144.37,11.14377012]
[1750882271468,5.17795617,144.39,144.37,11.14377012]
[1750882271650,28.42,144.4,144.37,11.14377012]
[1750882271856,5.17828567,144.39,144.37,11.14377012]
[1750882272048,28.42,144.4,144.37,11.14377012]
[1750882272251,5.17836629,144.39,144.37,11.14377012]
[1750882272442,28.42,144.4,144.37,11.14377012]
[1750882272647,5.17877778,144.39,144.37,11.14377012]
[1750882272865,28.42,144.38,144.36,4.21712331]
[1750882273657,28.42,144.38,144.35,11.14448782]
[1750882275089,0.04,144.41,144.37,4.21712331]
[1750882275377,0.04,144.41,144.38,4.21712331]
[1750882275378,28.4,144.4,144.38,4.21712331]
[1750882276473,0.04,144.41,144.38,4.21712331]
[1750882276654,28.4,144.4,144.38,4.21712331]
[1750882276855,0.04,144.41,144.38,4.21712331]
[1750882277057,5.18195064,144.4,144.39,11.14281068]
[1750882277361,33.58195064,144.4,144.39,11.14281068]
[1750882278860,5.18195064,144.4,144.39,11.14281068]
[1750882279176,0.04,144.41,144.39,11.14281068]
[1750882279382,28.4,144.4,144.39,11.14281068]
[1750882281351,28.44,144.41,144.39,11.14281068]
[1750882281567,0.04,144.41,144.4,4.21712331]
[1750882281759,28.44,144.41,144.4,4.21712331]
[1750882282383,33.61985936,144.41,144.4,4.21712331]
[1750882282584,28.44,144.41,144.4,4.21712331]
[1750882283377,28.44,144.41,144.39,11.14281068]
[1750882283569,0.04,144.41,144.39,11.14281068]
[1750882283767,28.44,144.41,144.39,11.14281068]
[1750882284468,0.04,144.41,144.39,11.14281068]
[1750882284781,28.44,144.41,144.39,11.14281068]
[1750882284988,28.44,144.41,144.39,4.21712331]
[1750882285159,28.44,144.41,144.38,4.21712331]
[1750882288083,28.44,144.41,144.38,6.92573264]
[1750882288383,28.44,144.41,144.38,11.14285595]
[1750882291268,28.44,144.41,144.39,4.21712331]
[1750882291473,33.6169351,144.41,144.39,4.21712331]
[1750882291777,28.44,144.41,144.38,11.14285595]
[1750882291990,0.04,144.41,144.4,4.21712331]
[1750882292186,0.04,144.41,144.4,58.15038266]
[1750882292375,0.04,144.43,144.41,18.64964886]
[1750882292591,0.04,144.45,144.44,26.0]
[1750882292884,0.04,144.45,144.44,49.8434243]
[1750882293184,0.04,144.45,144.44,32.92328994]
[1750882293383,0.04,144.45,144.44,37.14041325]
[1750882295066,0.04,144.45,144.44,30.21712331]
[1750882295381,0.04,144.45,144.44,4.21712331]
[1750882296284,0.04,144.45,144.44,6.58252404]
[1750882296766,0.04,144.45,144.43,6.92357495]
[1750882296966,0.04,144.45,144.44,6.58252404]
[1750882298289,0.04,144.45,144.44,13.50581398]
[1750882299481,0.04,144.45,144.44,6.58252404]
[1750882301592,6.62252404,144.45,144.41,6.58252404]
[1750882301765,6.58252404,144.43,144.37,10.38859929]
[1750882301970,6.58252404,144.41,144.37,3.46225765]
[1750882302196,6.58252404,144.41,144.37,10.38880587]
[1750882302402,6.58252404,144.41,144.37,3.46225765]
[1750882302771,6.58252404,144.41,144.36,39.50951195]
[1750882303087,6.58252404,144.41,144.36,6.58252404]
[1750882303270,6.58252404,144.41,144.36,13.5096178]
[1750882303470,4.84730114,144.42,144.36,13.5096178]
[1750882303784,28.38,144.43,144.41,6.58252404]
[1750882303976,28.38,144.43,144.42,6.58252404]
[1750882306075,28.38,144.43,144.42,13.50677275]
[1750882308591,28.38,144.43,144.42,6.58252404]
[1750882309699,28.38,144.43,144.41,13.50698006]
[1750882310391,28.38,144.43,144.4,32.9251027]
[1750882310592,28.38,144.43,144.4,13.50762674]
[1750882311383,28.38,144.43,144.41,6.58252404]
[1750882311780,28.38,144.43,144.4,13.50762674]
[1750882313693,28.38,144.43,144.39,6.58252404]
[1750882314002,1.568,144.42,144.37,6.58252404]
[1750882314306,8.15052404,144.42,144.37,6.58252404]
[1750882314490,8.15052404,144.42,144.35,13.509998]
[1750882314491,6.58252404,144.4,144.35,13.509998]
[1750882314696,28.38,144.39,144.35,13.509998]
[1750882314905,28.38,144.39,144.35,6.58252404]
[1750882315208,28.38,144.39,144.35,13.51003815]
[1750882316186,28.38,144.39,144.35,6.92751411]
[1750882316393,28.38,144.39,144.36,6.58252404]
[1750882316708,33.22803158,144.39,144.36,6.58252404]
[1750882318606,33.22803158,144.39,144.35,6.58252404]
[1750882318784,12.89612404,144.38,144.33,39.5308818]
[1750882318986,12.89612404,144.38,144.33,32.60252404]
[1750882320301,4.84865276,144.37,144.33,32.60252404]
[1750882320504,28.38,144.36,144.33,0.02]
[1750882320682,29.9024,144.36,144.33,0.02]
[1750882321508,36.48492404,144.36,144.33,0.02]
[1750882322694,4.84932455,144.35,144.33,0.02]
[1750882322893,11.43184859,144.35,144.33,0.02]
[1750882323110,6.58252404,144.34,144.33,0.02]
[1750882324490,11.43218456,144.34,144.33,0.02]
[1750882327520,12.72252404,144.35,144.33,0.02]
[1750882327816,28.38,144.34,144.33,0.02]
[1750882330424,39.95434613,144.34,144.33,0.02]
[1750882330602,46.14544613,144.34,144.33,0.02]
[1750882330805,46.42976927,144.34,144.33,0.02]
[1750882331413,46.14544613,144.34,144.33,0.02]
[1750882331723,28.38,144.34,144.33,0.02]
[1750882336730,39.95434613,144.34,144.33,0.02]
[1750882337402,188.55434613,144.34,144.33,0.02]
[1750882343334,39.95434613,144.34,144.33,0.02]
[1750882344551,11.57434613,144.34,144.33,0.02]
[1750882344719,34.98252404,144.34,144.33,0.02]
[1750882346248,39.83218456,144.34,144.33,0.02]
[1750882349248,11.43218456,144.34,144.33,0.02]
[1750882349430,39.83218456,144.34,144.33,0.02]
[1750882350438,34.98252404,144.34,144.33,0.02]
[1750882350634,39.83218456,144.34,144.33,0.02]
[1750882351726,33.24966052,144.34,144.33,0.02]
[1750882352358,28.4,144.34,144.33,0.02]
[1750882356960,11.57348898,144.37,144.33,0.02]
[1750882357162,28.38,144.36,144.33,0.02]
[1750882357334,17.55095781,144.38,144.33,6.60252404]
[1750882357539,28.38,144.37,144.33,6.60252404]
[1750882358033,0.14216157,144.39,144.35,6.58252404]
[1750882358234,28.38,144.38,144.35,13.51004415]
[1750882358429,28.38,144.37,144.35,13.51004415]
[1750882358647,28.38,144.37,144.34,6.92790714]
[1750882358858,28.38,144.37,144.34,6.58252404]
[1750882360065,11.43090216,144.38,144.33,6.60252404]
[1750882360238,28.38,144.37,144.33,6.60252404]
[1750882360834,28.38,144.37,144.34,6.58252404]
[1750882361129,28.38,144.37,144.34,13.51041221]
[1750882363754,28.38,144.37,144.35,6.58252404]
[1750882364165,28.38,144.36,144.35,6.58252404]
[1750882364457,148.6,144.39,144.35,6.58252404]
[1750882364763,28.38,144.38,144.34,6.92788817]
[1750882364941,28.38,144.38,144.36,6.58252404]
[1750882365136,28.38,144.38,144.36,13.50949791]
[1750882365537,28.38,144.37,144.36,13.50949791]
[1750882365953,148.6,144.39,144.36,13.50949791]
[1750882366250,28.38,144.37,144.36,6.92697387]
[1750882367250,28.38,144.37,144.35,6.58252404]
[1750882367560,28.38,144.37,144.34,6.58252404]
[1750882367878,28.38,144.37,144.33,6.94838941]
[1750882368044,28.38,144.37,144.34,6.58252404]
[1750882368345,33.22870895,144.37,144.34,6.58252404]
[1750882368740,28.38,144.37,144.34,6.58252404]
[1750882369267,4.84846256,144.38,144.34,6.58252404]
[1750882369473,28.38,144.37,144.34,13.51058367]
[1750882371774,28.38,144.37,144.34,6.58252404]
[1750882373690,33.22876278,144.37,144.34,6.58252404]
[1750882373976,33.22876278,144.37,144.33,6.60252404]
[1750882374478,39.81128682,144.37,144.33,0.02]
[1750882374884,11.43184859,144.35,144.33,0.02]
[1750882375181,34.96252404,144.34,144.33,0.02]
[1750882375558,28.38,144.34,144.33,0.02]
[1750882380983,33.22966052,144.34,144.33,0.02]
[1750882381280,39.81218456,144.34,144.33,0.02]
[1750882381654,33.22966052,144.34,144.33,0.02]
[1750882382661,28.38,144.34,144.33,0.02]
[1750882391198,33.22966052,144.34,144.33,0.02]
[1750882391413,39.81218456,144.34,144.33,0.02]
[1750882392791,39.95434613,144.34,144.33,0.02]
[1750882393302,45.11675615,144.34,144.33,0.02]
[1750882393498,38.53423211,144.34,144.33,0.02]
[1750882393677,33.54241002,144.34,144.33,0.02]
[1750882393876,33.22966052,144.34,144.33,0.02]
[1750882394201,45.11632253,144.34,144.33,0.02]
[1750882399322,44.97416096,144.34,144.33,0.02]
[1750882402180,39.81218456,144.34,144.33,0.02]
[1750882402705,39.79218456,144.34,144.33,0.02]
[1750882410692,44.9570121,144.34,144.33,0.02]
[1750882411823,38.37448806,144.34,144.33,0.02]
[1750882414525,28.36,144.34,144.33,0.02]
[1750882416324,153.44934912,144.35,144.33,0.02]
[1750882416525,28.36,144.34,144.33,0.02]
[1750882423714,5.17855166,144.35,144.33,0.02]
[1750882424023,28.36,144.34,144.33,6.60252404]
[1750882424226,28.36,144.34,144.33,4.23927893]
[1750882424804,28.36,144.34,144.33,11.1678454]
[1750882425218,6.12,144.37,144.33,11.1678454]
[1750882425422,32.4618,144.4,144.36,4.21927893]
[1750882425737,33.53797981,144.39,144.36,4.21927893]
[1750882425901,33.53797981,144.38,144.36,4.21927893]
[1750882426105,28.36,144.38,144.36,4.21927893]
[1750882426326,28.36,144.38,144.36,6.59035005]
[1750882426942,33.53593467,144.38,144.36,6.59035005]
[1750882427131,28.36,144.38,144.36,6.59035005]
[1750882427309,33.53593467,144.38,144.36,6.59035005]
[1750882427634,5.17593467,144.39,144.36,13.51742241]
[1750882427837,5.17593467,144.4,144.37,6.59035005]
[1750882428037,28.34,144.39,144.37,6.59035005]
[1750882429111,28.34,144.39,144.37,13.51693276]
[1750882429437,5.17168704,144.4,144.37,13.51693276]
[1750882429746,28.34,144.39,144.38,6.59035005]
[1750882430305,5.1695276,144.41,144.38,6.59035005]
[1750882430510,28.34,144.39,144.38,6.59035005]
[1750882431118,28.34,144.39,144.38,13.5165171]
[1750882432640,11.4371463,144.43,144.38,13.5165171]
[1750882432820,18.15885546,144.44,144.39,6.59035005]
[1750882433021,28.34,144.43,144.4,6.59035005]
[1750882433234,28.34,144.43,144.4,13.51537582]
[1750882434313,28.34,144.42,144.4,13.51537582]
[1750882434743,28.34,144.41,144.4,13.51537582]
[1750882436022,28.34,144.41,144.4,6.59035005]
[1750882436451,28.34,144.41,144.39,6.92532504]
[1750882436753,28.34,144.41,144.39,13.51567509]
[1750882439142,28.34,144.41,144.4,6.59035005]
[1750882440232,28.34,144.41,144.4,13.5155578]
[1750882440422,4.84642916,144.44,144.4,13.5155578]
[1750882440623,28.34,144.43,144.4,13.5155578]
[1750882440821,28.34,144.43,144.4,6.59035005]
[1750882442052,28.34,144.43,144.4,13.51545527]
[1750882443150,6.16,144.45,144.41,6.59035005]
[1750882443354,28.32,144.44,144.41,6.59035005]
[1750882445355,28.32,144.43,144.41,6.59035005]
[1750882449060,28.32,144.42,144.41,6.59035005]
[1750882450029,28.32,144.42,144.41,13.51507825]
[1750882450239,28.32,144.42,144.41,11.13943132]
[1750882451154,11.00603994,144.45,144.41,11.13943132]
[1750882451336,28.32,144.44,144.41,11.13943132]
[1750882455232,6.16,144.45,144.43,4.21470312]
[1750882455437,28.32,144.44,144.43,4.21470312]
[1750882455683,0.04,144.45,144.39,24.23902576]
[1750882455832,28.32,144.44,144.42,4.21470312]
[1750882456786,28.32,144.44,144.43,11.13847242]
[1750882457847,28.36,144.45,144.43,11.13847242]
[1750882458050,0.04,144.45,144.44,4.21470312]
[1750882458248,28.36,144.45,144.44,4.21470312]
[1750882458648,0.04,144.46,144.44,30.57475198]
[1750882458867,0.04,144.49,144.48,44.64964886]
[1750882459045,0.04,144.49,144.48,49.14867512]
[1750882460753,0.04,144.49,144.48,56.07004832]
[1750882461647,0.04,144.49,144.48,65.90197691]
[1750882461862,0.04,144.49,144.48,69.33242023]
[1750882462366,0.04,144.56,144.51,26.0]
[1750882462564,0.04,144.56,144.55,6.5735902]
[1750882463549,0.04,144.56,144.49,20.85011027]
[1750882463749,6.6135902,144.56,144.51,6.5735902]
[1750882463976,6.5735902,144.55,144.5,6.5735902]
[1750882464770,4.84295004,144.54,144.5,6.5735902]
[1750882464976,4.84295004,144.54,144.51,6.5735902]
[1750882468274,11.41654024,144.54,144.5,6.5735902]
[1750882469371,23.52391536,144.54,144.49,6.5735902]
[1750882471165,23.52391536,144.54,144.47,25.57135744]
[1750882471366,23.52391536,144.54,144.49,6.5735902]
[1750882476080,11.41654024,144.54,144.5,6.5735902]
[1750882476983,0.04,144.56,144.53,6.5735902]
[1750882477216,0.04,144.56,144.55,25.22323906]
[1750882477564,0.04,144.56,144.55,32.1412605]
[1750882479081,0.04,144.56,144.55,32.42558364]
[1750882484606,0.04,144.56,144.55,25.5676703]
[1750882484912,0.04,144.56,144.55,32.1412605]
[1750882486499,0.04,144.56,144.55,6.5735902]
[1750882487614,0.04,144.56,144.54,6.91850006]
[1750882487921,0.04,144.56,144.55,6.5735902]
[1750882490217,0.04,144.56,144.54,6.91850006]
[1750882490398,0.04,144.56,144.54,6.5735902]
[1750882493938,14.4048902,144.56,144.51,6.5735902]
[1750882494097,6.5735902,144.54,144.48,18.64964886]
[1750882494298,6.5735902,144.53,144.48,6.5735902]
[1750882495089,11.41698376,144.53,144.48,13.49469952]
[1750882495293,4.84339356,144.53,144.5,6.5735902]
[1750882495928,4.84339356,144.53,144.49,6.5735902]
[1750882496907,11.41698376,144.53,144.48,6.5735902]
[1750882498024,4.84339356,144.53,144.49,6.5735902]